Cogmind - Beta 13 X1 @@@ ROGUE MODE // 2023.07.24 @ 07:53:21 Player: maxwell Result: Destroyed by 4S-YIJ(R) with Subdweller Laser Performance ------------- Evolutions (0) 0 Regions Visited (2) 400 Robots Destroyed (28) 140 Value Destroyed (1016) 1016 Prototype IDs (10) 200 Alien Tech Used (0) 0 Bonus (0) 0 TOTAL SCORE: 1756 Bonus ------- None Cogmind --------- Core Integrity 0/250 Matter 277/300 Energy 180/180 System Corruption 0% Temperature Cool (6) Movement Treading (320) Ox2 Location -10/Subcaves Parts ------- > --- POWER (1) -------- Meta Core > --- PROPULSION (2) --- Light Treads Subdweller Monowheel > --- UTILITY (2+1) ---- Makeshift Armor Plating (+) Scrap Shield > --- WEAPON (2+1) ----- Subdweller Beam Cannon (+) Subdweller Machine Gun Subdweller Machine Gun > --- INVENTORY (5) ---- Makeshift Thermal Plating Rainbow Chip Subdweller Machine Gun Subdweller Shrapnel Launcher Multitool Peak State ------------ > --- POWER ------------ Meta Core > --- PROPULSION ------- Light Treads Light Treads Subdweller Monowheel > --- UTILITY ---------- Subdweller Optics Makeshift Armor Plating Makeshift Thermal Plating > --- WEAPON ----------- Subdweller Laser Subdweller Beam Cannon Subdweller Machine Gun > --- INVENTORY -------- Subdweller Machine Gun Subdweller Machine Gun Subdweller Shrapnel Launcher Multitool [Rating: 33] Favorites ----------- Power Meta Core Engine Ion Engine Power Core Meta Core Propulsion Light Treads Treads Light Treads Leg Aluminum Leg Wheel Subdweller Monowheel Utility Makeshift Armor Plating Device Subdweller Optics Storage Small Storage Unit Protection Makeshift Armor Plating Weapon Subdweller Machine Gun Energy Gun Subdweller Laser Energy Cannon Subdweller Beam Cannon Ballistic Gun Subdweller Machine Gun Launcher Grenade Launcher Build | -11 -10 -10 ------- Run | Jun Mat Sub Slots Evolved . | . . . Power . | . . . Propulsion . | . . . Utility . | . . . Weapon . | . . . Parts Attached 25 | . . 25 Power 2 | . . 2 Engine 1 | . . 1 Core 1 | . . 1 Reactor . | . . . Propulsion 4 | . . 4 Treads 3 | . . 3 Leg . | . . . Wheel 1 | . . 1 Hover . | . . . Flight . | . . . Utility 6 | . . 6 Device 1 | . . 1 Storage . | . . . Processor . | . . . Hackware . | . . . Protection 5 | . . 5 Artifact . | . . . Weapon 13 | . . 13 Energy Gun 3 | . . 3 Energy Cannon 2 | . . 2 Ballistic Gun 6 | . . 6 Ballistic Cannon . | . . . Launcher 2 | . . 2 Special Weapon . | . . . Impact Weapon . | . . . Slashing Weapon . | . . . Piercing Weapon . | . . . Special Melee Weapon . | . . . Unidentified Prototypes 1 | . . 1 Parts Lost 6 | . . 6 Power 1 | . . 1 Propulsion 1 | . . 1 Utility . | . . . Weapon 4 | . . 4 Highest Loss Streak 2 | . . 2 To Critical Strikes 1 | . . 1 Average Slot Usage (%) 85 | . 85 85 Engine 2 | . 14 1 Core 8 | . . 8 Treads 18 | . . 19 Leg 2 | . 28 1 Wheel 5 | . . 5 Storage 1 | . 14 1 Protection 17 | . . 17 Energy Gun 3 | . 14 3 Energy Cannon 11 | . . 11 Ballistic Gun 13 | . 14 13 Naked Turns . | . . . Heaviest Build 48 | 14 14 48 Greatest Support 40 | 20 20 40 Greatest Overweight (x) 2 | . . 2 Average Overweight (x) . | . . . Largest Inventory Capacity 8 | . 8 8 Average Capacity 5 | . 8 5 Most Carried 8 | . 7 8 Average Carried 4 | . 6 4 Final Capacity 8 | 8 8 5 Final Carried 7 | 6 7 5 Class Distribution -------------------- 76% | Subdweller-Tank 12% | Mutant 5% | Derelict-Tank 4% | Subdweller-Mutant Dominant Class ---------------- Mutant | -10/Materials Subdweller-Tank | -10/Subcaves Resources | -11 -10 -10 ----------- Run | Jun Mat Sub Matter Collected 888 | 200 . 688 Remotely . | . . . Salvage Created 817 | . . 817 Parts 54 | . . 54 Haulers Intercepted . | . . . Recyclers Shooed . | . . . Parts Field Recycled . | . . . Retrieved Matter . | . . . Parts Self-Destructed 16 | . . 16 Prevented . | . . . Kills | -11 -10 -10 ------- Run | Jun Mat Sub Combat Hostiles Destroyed 26 | . . 26 Guns 17 | . . 17 Cannons 4 | . . 4 AOE 5 | . . 5 Classes Destroyed 5 | . . 5 Turret 2 | . . 2 Swarmer 3 | . . 3 Grunt 2 | . . 2 Sentry 1 | . . 1 Subdweller 20 | . . 20 Best Kill Streak 3 | . . 3 Combat Bots Only 3 | . . 3 Max Kills in Single Turn 2 | . . 2 Gunslinging . | . . . Exploded 1 | . . 1 Melee . | . . . Uniques/NPCs Destroyed . | . . . Combat | -11 -10 -10 -------- Run | Jun Mat Sub Damage Taken 1864 | . . 1864 Core 263 | . . 263 Absorbed by Shields . | . . . Ignored by Resistances 9 | . . 9 Core Remaining (%) 100 | 100 . . Volleys Fired 142 | . . 142 Largest 3 | . . 3 Hottest 170 | . . 170 Shots Fired 266 | . . 266 Gun 196 | . . 196 Cannon 55 | . . 55 Launcher 15 | . . 15 Special . | . . . Kinetic 158 | . . 158 Thermal 94 | . . 94 Explosive 14 | . . 14 Electromagnetic . | . . . Robot Hit Streak 22 | . . 22 Robot Miss Streak 3 | . . 3 Penetration Max . | . . . Secondary Targets 2 | . . 2 Max Gunslinging Chain 1 | . . 1 Shots Hit Robots 120 | . . 120 Core Hits 45 | . . 45 Critical Kills 2 | . . 2 Critical Parts Destroyed . | . . . Critical Strikes 2 | . . 2 Destroy 2 | . . 2 Melee Attacks . | . . . Impact . | . . . Slashing . | . . . Piercing . | . . . Sneak Attacks . | . . . Combat Hostiles . | . . . Follow-up Attacks . | . . . Damage Inflicted 2981 | . . 2981 Guns 1810 | . . 1810 Cannons 465 | . . 465 Explosions 706 | . . 706 Melee . | . . . Ramming . | . . . Kinetic 1470 | . . 1470 Thermal 916 | . . 916 Explosive 595 | . . 595 Electromagnetic . | . . . Impact . | . . . Slashing . | . . . Piercing . | . . . Highest Corruption . | . . . Average Corruption . | . . . Corruption Purged . | . . . Corruption Blocked . | . . . Overload Shots . | . . . Overflow Damage 22 | . . 22 Projectiles . | . . . Explosions 22 | . . 22 Melee . | . . . Knockbacks . | . . . Impact . | . . . Kinetic . | . . . Secondary . | . . . Self-Inflicted Damage 126 | . . 126 Shots 6 | . . 6 Rammed . | . . . Targets Rammed . | . . . Kicked . | . . . Crushed . | . . . Highest Temperature 126 | . . 126 Average Temperature 29 | . . 29 Received Heat Transfer 336 | . . 336 Siege Activations . | . . . Robots Corrupted . | . . . Combat Hostiles . | . . . Parts Fried . | . . . Impact Corruptions . | . . . Robots Melted . | . . . Combat Hostiles . | . . . Parts Melted . | . . . Heat Transferred 1179 | . . 1179 Parts Sabotaged . | . . . Parts Stolen . | . . . Parts Stripped . | . . . Power Chain Reactions . | . . . Missiles Intercepted . | . . . Alert | -11 -10 -10 ------- Run | Jun Mat Sub Peak Influence 5 | . 5 . Initial . | . . . Average 4 | . 4 . Maximum Alert Level . | . . . Low Security (%) 100 | . 100 . Level 1 . | . . . Level 2 . | . . . Level 3 . | . . . Level 4 . | . . . Level 5 . | . . . High Security . | . . . Max Security . | . . . Squads Dispatched . | . . . Investigation . | . . . Extermination . | . . . Reinforcement . | . . . Assault . | . . . Garrison . | . . . Intercept . | . . . Searches Triggered . | . . . Construction Impeded . | . . . Haulers Reinforced . | . . . Active Scanning Responses . | . . . Cargo Convoy Interrupts . | . . . Stealth | -11 -10 -10 --------- Run | Jun Mat Sub Distress Signals . | . . . Communications Jammed . | . . . Distress Signals . | . . . Times Spotted 50 | . . 50 Peak Tracking Total 5 | . . 5 Tactical Retreats 3 | . . 3 Traps | -11 -10 -10 ------- Run | Jun Mat Sub Traps Triggered 2 | . . 2 Indirectly . | . . . Trap Hack Attempts . | . . . Triggered . | . . . Disarmed . | . . . Reprogrammed . | . . . Reused . | . . . Traps Extracted . | . . . Installed . | . . . Triggered 1 | . . 1 Machines | -11 -10 -10 ---------- Run | Jun Mat Sub Machines Disabled 4 | . . 4 Max in Single Turn 2 | . . 2 Machines Repaired . | . . . Machines Sabotaged . | . . . Overloaded Fab Kills . | . . . Hacking | -11 -10 -10 --------- Run | Jun Mat Sub Machines Accessed 3 | . 1 2 Terminals 1 | . 1 . Fabricators . | . . . Repair Stations . | . . . Recycling Units . | . . . Scanalyzers . | . . . Garrison Access . | . . . Total Hacks 12 | . 3 9 Successful 10 | . 1 9 Failed 2 | . 2 . Catastrophic . | . . . Database Lockouts . | . . . Manual 3 | . 3 . Terminals 3 | . 3 . Fabricators . | . . . Repair Stations . | . . . Recycling Units . | . . . Scanalyzers . | . . . Garrison Access . | . . . Terminal Hacks 9 | . . 9 Record 8 | . . 8 Derelict Proto ID Bank 1 | . . 1 Fabricator Hacks . | . . . Repair Station Hacks . | . . . Recycling Unit Hacks . | . . . Scanalyzer . | . . . Garrison Access Hacks . | . . . Unauthorized Hacks 1 | . 1 . Terminals 1 | . 1 . Botnet 1 | . 1 . Fabricators . | . . . Repair Stations . | . . . Recycling Units . | . . . Scanalyzers . | . . . Garrison Access . | . . . Data Cores Recovered . | . . . Used . | . . . Hacking Detections 1 | . 1 . Full Trace Events . | . . . Feedback Events . | . . . Feedback Blocked . | . . . Robot Schematics Acquired . | . . . Robots Built . | . . . Authchips . | . . . Time . | . . . Total Robot Build Rating . | . . . Part Schematics Acquired . | . . . Parts Built . | . . . Authchips . | . . . Time . | . . . Total Part Build Rating . | . . . Parts Repaired . | . . . Time . | . . . Parts Recycled . | . . . Recycled Matter . | . . . Retrieved Matter . | . . . Retrieved Components . | . . . Parts Scanalyzed . | . . . Part Schematics Acquired . | . . . Parts Damaged . | . . . Bothacking | -11 -10 -10 ------------ Run | Jun Mat Sub Used RIF Installer . | . . . Robots Hacked . | . . . Non-combat . | . . . Combat . | . . . Robot Hacks Applied . | . . . Relay Couplers Released . | . . . Fabnet Peak Effective % . | . . . Robots Rewired . | . . . Allies Hacked . | . . . Hacks Repelled . | . . . Allies | -11 -10 -10 -------- Run | Jun Mat Sub Total Allies . | . . . Largest Group . | . . . Highest-Rated Group . | . . . Highest-Rated Ally . | . . . Total Orders . | . . . Ally Attacks . | . . . Total Damage . | . . . Kills . | . . . Allies Corrupted . | . . . Allies Melted . | . . . Intel | -11 -10 -10 ------- Run | Jun Mat Sub Robot Analysis Total . | . . . Derelict Logs Recovered 2 | . . 2 Drone Launches . | . . . Drone Recoveries . | . . . Exploration | -11 -10 -10 ------------- Run | Jun Mat Sub Turns Passed 6401 | . 245 6156 Spaces Moved 2643 | 1 39 2603 Core . | . . . Treads 2432 | . . 2432 Legs 211 | 1 39 171 Wheels . | . . . Hover . | . . . Flight . | . . . Fastest Speed 120 | 120 120 120 Average Speed 214 | 120 120 215 Slowest Speed 320 | 120 120 320 Overloaded Moves . | . . . Propulsion Burnouts . | . . . Robots Hopped . | . . . Cave-ins Triggered . | . . . Exploration Rate (%) 34 | 2 10 91 Regions Visited 2 Branch Regions 1 Pre-discovered Areas 1 | . . 1 Known Exits Taken . | . . . Unknown Exits Taken 2 | 1 1 . Scrap Searched 9 | . . 9 Spaces Dug 28 | . . 28 Terrain Destroyed 97 | . . 97 Melee . | . . . Projectile 10 | . . 10 AOE 87 | . . 87 Terrain Rammed . | . . . Walls Destroyed . | . . . Machines Disabled . | . . . Actions | -11 -10 -10 --------- Run | Jun Mat Sub Total 3128 | . 237 2891 Wait 266 | . 198 68 Move 2641 | . 38 2603 Hop . | . . . Pick Up 18 | . 1 17 Fast Attach 10 | . . 10 Attach 10 | . . 10 Detach 2 | . . 2 Swap 5 | . . 5 Drop 18 | . . 18 Fire 142 | . . 142 Melee . | . . . Ram . | . . . Kick . | . . . Crush . | . . . Escape Stasis . | . . . Rewire . | . . . Trap . | . . . Miscellaneous 16 | . . 16 Route ------- -11/Junkyard -10/Materials -10/Subcaves (discovered 3 exits: [*Mat x2] / [*Rec]) History --------- Turn | Location | Event 1 | -11/Junkyard | Discovered new exit (range 0) 1 | -11/Junkyard | Entered Materials 219 | -10/Materials | Discovered new exit (range 12) 246 | -10/Materials | Entered Subcaves 315 | -10/Subcaves | Build established: Mutant 375 | -10/Subcaves | Learned location of Zion (-7) 375 | -10/Subcaves | Met a Zionite searching for "candidates" 452 | -10/Subcaves | Ambushed by Subdweller buried in earth 472 | -10/Subcaves | Learned 4 Materials zone layouts 662 | -10/Subcaves | Shifting Twisted Machinery released Mak. Armor Plating 693 | -10/Subcaves | Core integrity fell below 50% 700 | -10/Subcaves | Shifting Twisted Machinery released Scrap Shield 920 | -10/Subcaves | A Subdweller sparked back to life 920 | -10/Subcaves | A Subdweller sparked back to life 920 | -10/Subcaves | A Subdweller sparked back to life 954 | -10/Subcaves | Found Prototype Power Core 954 | -10/Subcaves | Identified Meta Core 955 | -10/Subcaves | Attached Meta Core, gained temporary slots: Propulsion, Utility, Weapon 1390 | -10/Subcaves | Build established: Subdweller-Tank 1565 | -10/Subcaves | Shifting Twisted Machinery released Mak. Power Source 1584 | -10/Subcaves | A swath of the cavern ceiling suddenly collapsed 1703 | -10/Subcaves | Learned 4 Materials zone layouts 1923 | -10/Subcaves | Visited Clippyterm 1930 | -10/Subcaves | Learned Factory emergency access door positions 2503 | -10/Subcaves | Disturbed a concealed Subdweller 2853 | -10/Subcaves | Discovered new exit (range 12) 4018 | -10/Subcaves | Discovered new exit (range 13) 4077 | -10/Subcaves | Shifting Twisted Machinery released Hvy. Riot Gun 5195 | -10/Subcaves | Discovered new exit (range 14) 5203 | -10/Subcaves | Core integrity fell below 20% 5246 | -10/Subcaves | Build established: Derelict-Tank 5614 | -10/Subcaves | Build established: Subdweller-Tank 5936 | -10/Subcaves | Visited 4L-MR0's lab 5967 | -10/Subcaves | Found Rainbow Chip 6402 | -10/Subcaves | Destroyed by 4S-YIJ(R) with Subdweller Laser Last Messages --------------- So they were already pretty big, but switching to this brought them to a completely new level. It took two entire artifacts to create that ginormous thing, and I hope it makes them a fat target for whoever might want to teach them a lesson in manners. 05957_ Testing Chamber breached. 05967_ Dropped Sub. Optics. 05967_ Acquired Rainbow Chip. 05981_ 4L-MR0 mumbles to no one in particular: "Damn Subs sneaking around stealing my stuff." 05983_ 4L-MR0 mumbles: "I'm surprised some of them are even willing to come in here given their fear of my usual visitors." 05997_ Acquired 8 matter. 06067_ Searching scrap... 06067_ Found Sub. Machine Gun. 06067_ Found Mak. Shrapnel Gun. 06067_ Found 38 Matter. 06386_ YJ-SC8(R) destroyed. 06386_ Switching to secondary target: 4S-YIJ(R). 06386_ Lgt. Treads destroyed. 06389_ Temporary Propulsion slot lost. Map ----- +----------------------------------------------------+ | ?????????????????????????????????????????????????? | | ?????????????????????????????????????????????????? | | ?????????????????????????????????????????????????? | | ?????????????????????????????????????????????????? | | ?????????????????????????????????????????????????? | | ?????????????????????????????????????????????????? | | ?????????????????????????????????????????????????? | | ?????????????????????????????????????????????????? | | ?????????????????????????????????????????????????? | | ?????????????????????????????????????????????????? | | ?????????????????????????????????????????????????? | | ?????????????????????????????????????????????????? | | ?????????????????????????????????????????????????? | | ???????????????????###???????????????????????????? | | ???????????????????# #??????????????????????????? | | ???????????????###?# ######????????????????????? | | ?????????? #???# ## ####?????????????????? | | ?????????? ### "#""???????????????? | | ?????????# """????????????????? | | ?????????# """"????????????????? | | ?????????# "#??????????????????? | | ?????????# ##??????????????????? | | ????????# ## #???????????????????? | | ???????? #### #?? #???????? #???????? | | ???????? ??????# #####? ## #???????? | | ??????? ????????# @ ## #??????? | | ??????? ???????## !%[ #??????? | | ?????? ?????## R #?????????????? | | ?????? ???## #?????????????? | | ?????? ?## #?????????????? | | ????? ## #?????????????? | | ????? ###### #?????????????? | | ?????# ##????? #?????????????? | | ??????# ### ##????? ##?????????????? | | ??????#####????## #????? ## #??????????????? | | ?????###????????# #???? #?# #??????????????? | | ????## ##??????## #???? #?? #??????????????? | | ???## #??????# #???? ??? ??????????????? | | ???# #??????## ###### ??? ?????????????? | | ???## ##??????# # ? ???? ??????????????? | | ????## ##??#### ## #? ???????????????????? | | ?????# #?## ### % #?#???????????????????? | | ????## ##?# #?# #?????????????????????? | | ????# ##?## ##?# ##????????????????????? | | ????# #### ###???# #????????????????????? | | ????# ####?## #????????????????????? | | ????# ### ##???????????????????? | | ????# ##??????????????????? | | ???# ## #??????????????????? | | ???# ### ## #??????????????????? | +----------------------------------------------------+ Best States ------------- Heat Dissipation 25 Energy Generation 17 Energy Capacity 250 Matter Stores 300 Matter Capacity 300 Sight Range 21 Terrain Scan Density 10 Armor Coverage 900 Resistance: TH 10 Evasion (%) 55 Recoil Reduction 2 Item Schematics ----------------- None Robot Schematics ------------------ None Fabricated ------------ Nothing Alien Tech Used ----------------- None Achievements -------------- None Challenges ------------ None Game ------ Seed IonicTiamatBiocell Manual? 0 Play Time 00:14:54 Cumulative 371.6 hours Start 2023.07.23 @ 20:11:04 End 2023.07.24 @ 07:53:21 Sessions 2 Manual Loads 0 Difficulty Rogue Special Mode None Game No. 550 Rogue 523 Adventurer 4 Explorer 23 Win Type - Total 20 Types 14/0/2/2/1/0/0/1/0 Lore% 81 Gallery% 91 Achievement% 83 Wizard Run 0 Options --------- ASCII 0 Keyboard 1 Movement Numpad Keybinds 0 Fullscreen 1 Font 18/SmallcapsGlow Map View 76x50 Tactical HUD 1 Map Filters NONE Filters NONE Steam 1 RUN: 9ac3c5ad-881c-41b0-b5c2-775015d3097d